lending/lending_fUSD_20260206
["ID","MTS","AMOUNT","RATE_DAILY","PERIOD"]
[404629075,1770353674672,305.49846678,0.00012446,2]
[404629076,1770353674714,500.0,0.00012446,2]
[404629077,1770353684958,500.0,0.00012347,2]
[404629078,1770353685436,500.0,0.00012347,2]
[404629079,1770353685915,500.0,0.00012347,2]
[404629080,1770353686382,500.0,0.00012347,2]
[404629081,1770353686902,500.0,0.00012347,2]
[404629082,1770353687464,500.0,0.00012347,2]
[404629083,1770353687943,500.0,0.00012347,2]
[404629084,1770353688433,500.0,0.00012347,2]
[404629085,1770353688980,500.0,0.00012347,2]
[404629086,1770353689469,500.0,0.00012347,2]
[404629087,1770353689941,500.0,0.00012347,2]
[404629088,1770353690445,500.0,0.00012347,2]
[404629089,1770353691567,500.0,0.00012347,2]
[404629090,1770353692169,500.0,0.00012347,2]
[404629091,1770353692626,152.31245181,0.00012347,2]
[404629092,1770353692650,347.68754819,0.00012347,2]
[404629093,1770353693253,500.0,0.00012347,2]
[404629094,1770353693813,500.0,0.00012347,2]
[404629095,1770353694308,500.0,0.00012347,2]
[404629096,1770353694793,500.0,0.00012347,2]
[404629097,1770353695299,500.0,0.00012347,2]
[404629098,1770353695815,500.0,0.00012347,2]
[404629099,1770353696404,500.0,0.00012347,2]
[404629100,1770353696876,500.0,0.00012347,2]
[404629101,1770353697520,245.26346696,0.00012347,2]
[404629102,1770353701151,300.0,0.00012446,2]
[404629103,1770353701201,107.05898485,0.00012446,2]
[404629104,1770353701222,1092.94101515,0.00012446,2]
[404629105,1770353702540,8907.06898485,0.00011738,2]
[404629106,1770353702564,5000.01,0.00011738,2]
[404629107,1770353702587,10000.01,0.00011738,2]
[404629108,1770353702607,5000.01,0.00011738,2]
[404629109,1770353702628,10000.01,0.00011738,2]
[404629110,1770353702650,10000.01,0.00011738,2]
[404629111,1770353702676,10000.01,0.00011738,2]
[404629112,1770353702698,10000.01,0.00011738,2]
[404629113,1770353702719,10000.01,0.00011738,2]
[404629114,1770353702740,10000.01,0.00011738,2]
[404629115,1770353702760,5000.01,0.00011738,2]
[404629116,1770353702780,5000.01,0.00011738,2]
[404629117,1770353702800,4874.09101515,0.00011738,2]
[404629118,1770353712330,4712.49,0.00011789,2]
[404629119,1770353715677,151.0,0.00012444,2]
[404629120,1770353719879,200.0,0.00011816,2]
[404629121,1770353746111,391.70854298,0.00012347,2]
[404629122,1770353750409,455.34966412,0.00012347,2]
[404629123,1770353751010,176.06452202,0.00012347,2]
[404629126,1770353761821,3382.446688,0.00012384,2]
[404629127,1770353765786,530.95058288,0.00012347,2]
[404629128,1770353765809,1231.83814732,0.00012347,2]
[404629129,1770353766603,8768.17185268,0.00012347,2]
[404629130,1770353766626,4854.52543339,0.00012347,2]
[404629131,1770353767960,342.910753,7.945e-05,2]
[404629132,1770353769328,159.0,0.00013,3]
[404629133,1770353771743,4802.57381361,0.00012381,2]
[404629134,1770353771766,8820.12347244,0.00012381,2]
[404629135,1770353772918,1179.88652756,0.00011933,2]
[404629136,1770353772940,696.56347244,0.00011933,2]
[404629137,1770353776549,9303.44652756,0.00012414,2]
[404629138,1770353776575,4319.25075849,0.00012414,2]
[404629139,1770353825286,172.2,9.346e-05,2]
[404629140,1770353828736,159.0,0.00013,3]
[404629141,1770353885972,1175.1924868,0.00012247,2]
[404629142,1770353952848,159.0,0.00013,3]
[404629143,1770353997253,375.0,0.000202,120]
[404629144,1770354006168,783.46165786,0.00012247,2]
[404629145,1770354011666,261.13902866,0.00012247,2]
[404629146,1770354043537,180.51563811,0.00012247,2]
[404629147,1770354051711,306.37128636,0.00019,30]
[404629148,1770354092235,3525.342,0.000121,2]
[404629149,1770354092280,310.113,0.000121,2]
[404629150,1770354121557,300.0,0.00012246,2]
[404629151,1770354126372,522.3077719,0.00012247,2]
[404629152,1770354141973,174.09268576,0.00012247,2]
[404629153,1770354142819,168.15454234,0.00012247,2]
[404629154,1770354142840,5000.01,0.00012247,2]
[404629155,1770354191023,-300.0,0.00012246,2]
[404629156,1770354195317,151.0,0.00012244,2]
[404629157,1770354201887,1467.96226875,0.000122,2]
[404629158,1770354223836,500.0,0.00011454,2]
[404629159,1770354241246,300.0,0.00012246,2]
[404629160,1770354246613,348.20518128,0.00012147,2]
[404629161,1770354301245,1200.0,0.00012246,2]
[404629162,1770354313944,150.0,0.0001222,2]
[404629163,1770354314839,150.0,0.0001222,2]
[404629164,1770354316739,151.0,0.00012244,2]
[404629165,1770354340209,10000.01,0.00012147,2]
[404629166,1770354340236,5007.6757746,0.00012147,2]
[404629167,1770354345197,5000.01,0.00012194,2]
[404629168,1770354345221,4992.3342254,0.00012194,2]
[404629169,1770354345243,5015.34154917,0.00012194,2]
[404629170,1770354349610,4984.66845083,0.00012055,2]
[404629171,1770354349632,4262.84154917,0.00012055,2]
[404629172,1770354350193,5737.16845083,0.00012242,2]
[404629173,1770354350217,9270.51732374,0.00012242,2]
[404629174,1770354361942,300.0,0.00012246,2]
[404629175,1770354365795,429.49267626,0.00012219,2]
[404629176,1770354365818,10000.01,0.00012219,2]
[404629177,1770354365840,2098.49732374,0.00012219,2]
[404629178,1770354366542,159.0,0.00013,3]
[404629179,1770354366783,232.13678752,0.00012147,2]
[404629180,1770354383306,1293.369024,0.00012184,2]
[404629181,1770354418169,8706.640976,0.00012147,2]
[404629182,1770354418192,10000.01,0.00012147,2]
[404629183,1770354418215,10000.01,0.00012147,2]
[404629184,1770354418238,10000.01,0.00012147,2]
[404629185,1770354418260,10000.01,0.00012147,2]
[404629186,1770354433440,168.99497017,0.00012145,2]
[404629187,1770354433764,151.0,0.00012144,2]
[404629188,1770354434300,151.0,0.00012144,2]
[404629189,1770354464326,5266.78,0.00011393,2]
[404629190,1770354467716,3524.82,0.00011404,2]
[404629191,1770354481252,300.0,0.00012146,2]
[404629192,1770354482792,343.56085397,0.00012147,2]
[404629193,1770354486962,93.85417586,0.00012147,2]
[404629194,1770354486985,2491.61999515,0.00012147,2]
[404629195,1770354505807,271.31426798,0.00012096,2]
[404629196,1770354507832,232.0,0.00012146,2]
[404629197,1770354512419,550.75215704,0.00012146,2]
[404629198,1770354512468,500.0,0.00012146,2]
[404629199,1770354512529,445.71035485,0.00012146,2]
[404629200,1770354512585,163.36630651,0.00012146,2]
[404629201,1770354512712,500.0,0.00012146,2]
[404629202,1770354513138,500.0,0.00012146,2]
[404629203,1770354513330,500.0,0.00012146,2]
[404629204,1770354513422,500.0,0.00012146,2]
[404629205,1770354519365,291.5159924,0.00012146,2]
[404629206,1770354519409,500.0,0.00012146,2]
[404629207,1770354519446,500.0,0.00012146,2]
[404629208,1770354519484,500.0,0.00012146,2]
[404629209,1770354519522,500.0,0.00012146,2]
[404629210,1770354519563,500.0,0.00012146,2]
[404629211,1770354519601,500.0,0.00012146,2]
[404629212,1770354519647,53.73092607,0.00012146,2]
[404629213,1770354519671,446.26907393,0.00012146,2]
[404629214,1770354519709,500.0,0.00012146,2]
[404629215,1770354519745,500.0,0.00012146,2]
[404629216,1770354519781,500.0,0.00012146,2]
[404629217,1770354519830,500.0,0.00012146,2]
[404629218,1770354519873,500.0,0.00012146,2]
[404629219,1770354519924,336.37745866,0.00012146,2]
[404629220,1770354519982,500.0,0.00012146,2]
[404629221,1770354520080,500.0,0.00012146,2]
[404629222,1770354520139,500.0,0.00012146,2]
[404629223,1770354520176,500.0,0.00012146,2]
[404629224,1770354520464,500.0,0.00012146,2]
[404629225,1770354520509,500.0,0.00012146,2]
[404629226,1770354520554,500.0,0.00012146,2]
[404629227,1770354520631,500.0,0.00012146,2]
[404629228,1770354534006,2717.36346741,0.00012047,2]
[404629229,1770354534029,6301.7081786,0.00012047,2]
[404629230,1770354538900,509.57470144,0.00012137,2]
[404629231,1770354538995,3188.72711996,0.00012068,2]
[404629232,1770354539017,5830.34452604,0.00012068,2]
[404629233,1770354541294,300.0,0.00012146,2]
[404629234,1770354544006,3869.66547396,0.00012089,2]
[404629235,1770354544029,5149.40617204,0.00012089,2]
[404629236,1770354549237,4850.60382796,0.0001211,2]
[404629237,1770354549262,4168.46781804,0.0001211,2]
[404629238,1770354559060,202.12547645,0.00012047,2]
[404629239,1770354572441,200.0,0.0001212,2]
[404629240,1770354590452,883.99608815,0.00012047,2]
[404629241,1770354607238,1723.64944734,0.00012053,2]
[404629242,1770354613025,229.0405693,0.00012053,2]
[404629243,1770354622304,467.30037572,0.00012047,2]
[404629244,1770354625545,1157.34325449,0.00012047,2]
[404629251,1770354632128,-820.54991355,0.0001213,2]
[404629254,1770354632139,-379.45008645,0.0001213,2]
[404629255,1770354632148,-300.0,0.00012131,2]
[404629256,1770354632158,-927.27718513,0.00012131,2]
[404629257,1770354632170,-3623.32297995,0.00012131,2]
[404629258,1770354632181,-1998.50742485,0.00012131,2]
[404629259,1770354632193,-2469.96405607,0.00012131,2]
[404629260,1770354632202,-310.85336454,0.00012137,2]
[404629261,1770354632214,-310.85336454,0.00012137,2]
[404629262,1770354632224,-300.0,0.00012141,2]
[404629263,1770354632234,-383.06302283,0.00012141,2]
[404629264,1770354632244,-151.0,0.00012144,2]
[404629265,1770354632253,-232.89346098,0.00012147,2]
[404629266,1770354632265,-35914.31268149,0.00012147,2]
[404629267,1770354632281,-726.36654383,0.00012147,2]
[404629268,1770354632293,-474.202935,0.00012147,2]
[404629269,1770354632304,-927.69623708,0.00012147,2]
[404629270,1770354632320,-612.89013257,0.00012147,2]
[404629271,1770354632331,-17889.0871401,0.00012147,2]
[404629272,1770354632342,-12979.42691393,0.00012147,2]
[404629273,1770354632354,-5354.46675912,0.00012147,2]
[404629274,1770354632374,-265.84703492,0.00012147,2]
[404629275,1770354632393,-22382.0553048,0.00012147,2]
[404629276,1770354632405,-13972.85755045,0.00012147,2]
[404629280,1770354638222,-8984.54281752,0.00012147,2]
[404629286,1770354640282,-765.44534152,0.00012147,2]
[404629288,1770354640295,-2333.0,0.00012147,2]
[404629290,1770354640393,-252.636388,0.00012147,2]
[404629291,1770354640559,-67612.76790761,0.00012147,2]
[404629292,1770354640614,-536827.88153945,0.00012147,2]
[404629293,1770354640672,-48914.23654,0.00012147,2]
[404629294,1770354640684,-654.33,0.00012147,2]
[404629295,1770354640695,-2522.59390257,0.00012147,2]
[404629296,1770354640706,-455.93069983,0.00012147,2]
[404629297,1770354640720,-776.90309751,0.00012147,2]
[404629312,1770354648224,-1711.67749305,0.00012147,2]
[404629313,1770354648235,-1632.89,0.00012147,2]
[404629314,1770354648268,-1451.04749578,0.00012147,2]
[404629315,1770354648282,-60273.83416908,0.00012147,2]
[404629316,1770354648293,-604.91360724,0.00012147,2]
[404629317,1770354648356,-3226.51422338,0.00012147,2]
[404629318,1770354662416,199.89597849,0.00012053,2]
[404629320,1770354685995,2500.0,0.00012047,2]
[404629321,1770354692213,2820.273,0.00011904,2]
[404629322,1770354692324,248.091,0.00011904,2]
[404629323,1770354716600,841.74096107,0.00012053,2]
[404629324,1770354727425,1149.09963156,0.00012053,2]
[404629325,1770354741903,5534.86,0.00011488,2]
[404629326,1770354743259,284.27363232,0.00012053,2]
[404629328,1770354782324,199.89597848,0.00012053,2]
[404629329,1770354800672,150.0,0.0001212,2]
[404629330,1770354809231,9850.01,0.00012047,2]
[404629331,1770354809256,10000.01,0.00012047,2]
[404629332,1770354809281,10000.01,0.00012047,2]
[404629333,1770354809305,10000.01,0.00012047,2]
[404629334,1770354809330,10000.01,0.00012047,2]
[404629335,1770354809354,10000.01,0.00012047,2]
[404629336,1770354809378,10000.01,0.00012047,2]
[404629337,1770354809402,10000.01,0.00012047,2]
[404629338,1770354809426,10000.01,0.00012047,2]
[404629339,1770354809450,10000.01,0.00012047,2]
[404629340,1770354827324,377.771101,0.00011987,2]
[404629341,1770354840476,4622.238899,0.00012044,2]
[404629342,1770354840497,5000.01,0.00012044,2]
[404629343,1770354840520,1226.096832,0.00012044,2]
[404629344,1770354843514,1142.96779371,0.00011089,2]
[404629345,1770354847655,4187.0745648,0.00011947,2]
[404629346,1770354847983,3443.87080949,7.945e-05,2]
[404629347,1770354848005,2893.89287251,7.945e-05,2]
[404629348,1770354869080,222.0,0.0002,14]
[404629349,1770354873717,442.29249204,0.00011947,2]
[404629350,1770354884609,500.0,0.00012046,2]
[404629351,1770354884644,311.9972484,0.00012046,2]
[404629353,1770354886952,385.52650993,0.00012046,2]
[404629354,1770354887288,500.0,0.00012046,2]
[404629355,1770354888571,500.0,0.00012046,2]
[404629356,1770354888729,364.35641456,0.00012046,2]
[404629357,1770354890587,500.0,0.00012046,2]
[404629358,1770354890626,201.03644082,0.00012046,2]
[404629359,1770354890671,500.0,0.00012046,2]
[404629360,1770354890712,500.0,0.00012046,2]
[404629361,1770354890772,500.0,0.00012046,2]
[404629362,1770354890815,500.0,0.00012046,2]
[404629363,1770354890867,500.0,0.00012046,2]
[404629364,1770354890929,500.0,0.00012046,2]
[404629365,1770354892644,199.89597848,0.00011947,2]
[404629366,1770354900263,201.01204326,0.00011947,2]
[404629367,1770354900288,7541.14943581,0.00011947,2]
[404629368,1770354901799,1200.0,0.00012046,2]
[404629369,1770354902124,150.0,0.00012046,2]
[404629371,1770354913804,151.0,0.00012044,2]
[404629372,1770354915011,431.86,0.00012,2]
[404629373,1770354933072,526.00056419,0.00011947,2]
[404629374,1770354933095,1135.34442201,0.00011947,2]
[404629376,1770354961579,300.0,0.00012046,2]
[404629377,1770354965092,153.02,0.0001165,2]
[404629378,1770354967868,3591.6188663,0.00011947,2]
[404629379,1770355004021,362.26879128,0.00011947,2]
[404629380,1770355021278,300.0,0.00012046,2]
[404629381,1770355036752,151.0,0.00012044,2]
[404629382,1770355081283,300.0,0.00012046,2]
[404629383,1770355084689,500.0,0.00012044,2]
[404629384,1770355086463,269.86855695,0.00012046,2]
[404629385,1770355088046,2394.41257752,0.00011947,2]
[404629386,1770355103423,411.2262712,0.00012046,2]
[404629387,1770355105893,131.25051474,0.00011631,2]
[404629388,1770355105915,868.74948526,0.00011631,2]
[404629389,1770355113200,218.39807388,0.00012046,2]
[404629390,1770355128291,500.0,0.00012046,2]
[404629391,1770355128394,500.0,0.00012046,2]
[404629392,1770355128450,305.04949019,0.00012046,2]
[404629393,1770355134306,241.51252752,0.00011996,2]
[404629394,1770355156037,151.0,0.00012044,2]
[404629395,1770355160149,166.66,0.0001105,2]
[404629396,1770355160343,166.66,0.00011282,2]
[404629397,1770355160541,166.66,0.00011515,2]
[404629398,1770355160742,166.66,0.00011747,2]
[404629399,1770355160804,2500.0,0.00011947,2]
[404629400,1770355160938,166.66,0.0001198,2]
[404629401,1770355201846,1200.0,0.00012046,2]
[404629402,1770355208261,1596.27505168,0.00011972,2]
[404629403,1770355210924,155.42668228,0.00012037,2]
[404629404,1770355242309,500.0,0.00011947,2]
[404629405,1770355244301,430.29868919,0.00011972,2]
[404629406,1770355244323,1023.3781737,0.00011972,2]
[404629407,1770355246300,8976.6318263,0.00011947,2]
[404629408,1770355246322,10000.01,0.00011947,2]
[404629409,1770355293208,156.87,0.00011544,2]
[404629410,1770355343660,1600.0,0.00011447,2]
[404629411,1770355352821,150.0,0.00011447,2]
[404629412,1770355428902,500.0,0.00011484,2]
[404629413,1770355477189,7593.14,0.00011,2]
[404629414,1770355477214,4406.86,0.00011,2]
[404629415,1770355488740,150.0,0.00011324,2]
[404629416,1770355504135,1003.10510861,0.00011089,2]
[404629417,1770355524380,1029.68956309,0.000108,2]
[404629418,1770355558740,645.58810521,8e-05,2]
[404629419,1770355562579,570.09057781,0.00011,2]
[404629420,1770355631426,260.29161735,0.000101,2]
[404629421,1770355692421,1934.38502793,0.0001,2]
[404629422,1770355692445,0.52317434,0.0001,2]
[404629423,1770355704415,2740.47292956,0.0001,2]
[404629424,1770355707367,268.76089012,0.000107,2]
[404629425,1770355714590,6990.25300598,0.0001,2]
[404629426,1770355714613,3880.82647513,0.0001,2]
[404629427,1770355714646,3880.82647513,0.0001,2]
[404629428,1770355714670,3880.82647513,0.0001,2]
[404629429,1770355714694,822.75273532,0.0001,2]
[404629430,1770355756106,-2181.524889,0.00011688,2]
[404629431,1770355756126,-3006.338547,0.00011747,2]
[404629432,1770355825615,575.57,0.00010975,2]
[404629442,1770355831342,-1053.936722,0.00011685,2]
[404629445,1770355831354,-161.00835168,0.00011691,2]
[404629447,1770355831365,-250.0,0.00011692,2]
[404629450,1770355831376,-1348.3743462,0.00011692,2]
[404629452,1770355831387,-1206.44751412,0.00011692,2]
[404629454,1770355831403,-1200.0,0.00011699,2]
[404629457,1770355831414,-150.0,0.00011699,2]
[404629459,1770355831425,-300.0,0.00011699,2]
[404629461,1770355831436,-16401.03596411,0.000117,2]
[404629464,1770355831503,-35045.92376648,0.000117,2]
[404629470,1770355837593,-6543.9,0.000117,2]
[404629473,1770355839460,-1393.20373301,0.000117,2]
[404629474,1770355839629,-789.47421459,0.000117,2]
[404629475,1770355839641,-4159.66131743,0.000117,2]
[404629476,1770355839688,-621.86898814,0.000117,2]
[404629477,1770355839699,-69282.21494134,0.000117,2]
[404629478,1770355839708,-250.0,0.00011715,2]
[404629479,1770355839717,-155.42668228,0.00011737,2]
[404629480,1770355839727,-151.0,0.00011744,2]
[404629481,1770355839736,-1413.3123,0.00011747,2]
[404629482,1770355839745,-3500000.0,0.00011747,2]
[404629483,1770355839755,-10232.76741417,0.00011792,2]
[404629484,1770355839764,-10232.76741416,0.00011798,2]
[404629485,1770355839773,-10232.76741416,0.00011804,2]
[404629486,1770355839782,-10232.76741416,0.0001181,2]
[404629487,1770355839791,-10232.76741416,0.00011816,2]
[404629488,1770355839801,-10232.76741416,0.00011823,2]
[404629489,1770355839810,-10232.76741416,0.00011829,2]
[404629490,1770355839819,-10232.76741416,0.00011835,2]
[404629491,1770355839829,-10232.76741416,0.00011841,2]
[404629492,1770355839839,-466.5624,0.00011846,2]
[404629493,1770355839848,-10232.76741416,0.00011847,2]
[404629494,1770355839857,-151.0,0.00011944,2]
[404629495,1770355839867,-151.0,0.00011944,2]
[404629496,1770355839876,-153.35268177,0.00011944,2]
[404629497,1770355839885,-14325.0393737,0.00011947,2]
[404629498,1770355839895,-1000.0,0.00011947,2]
[404629499,1770355839906,-162.1871,0.00011947,2]
[404629500,1770355839916,-4123.751,0.00011947,2]
[404629501,1770355839925,-13228.3437,0.00011947,2]
[404629502,1770355839934,-387502.28970714,0.00011947,2]
[404629503,1770355839947,-1684.166462,0.00011947,2]
[404629504,1770355839958,-6555.8,0.00011947,2]
[404629505,1770355839969,-14999.968152,0.00011947,2]
[404629508,1770355839993,-5523.86793438,0.00011947,2]
[404629511,1770355840003,-1917.95021935,0.00011947,2]
[404629513,1770355840014,-600.719909,0.00011947,2]
[404629545,1770355845497,-2945.85690857,0.00011947,2]
[404629546,1770355845555,-771.02060696,0.00011947,2]
[404629547,1770355845567,-683.961285,0.00011947,2]
[404629583,1770355846546,-587783.70712865,0.00011947,2]
[404629584,1770355846558,-489030.69168695,0.00011947,2]
[404629585,1770355846569,-237.4484,0.00011947,2]
[404629586,1770355846578,-10000.0,0.00011947,2]
[404629587,1770355846588,-2500.0,0.00011947,2]
[404629588,1770355846598,-171.2440409,0.00011972,2]
[404629589,1770355846608,-185.09,0.00012,2]
[404629590,1770355846618,-500.0,0.0001204,2]
[404629591,1770355846628,-500.0,0.0001204,2]
[404629592,1770355846637,-208.60608682,0.0001204,2]
[404629593,1770355846646,-151.0,0.0001204,2]
[404629594,1770355846655,-151.0,0.0001204,2]
[404629595,1770355846665,-151.0,0.0001204,2]
[404629596,1770355846674,-151.0,0.0001204,2]
[404629597,1770355846688,-151.0,0.0001204,2]
[404629598,1770355846697,-151.0,0.0001204,2]
[404629599,1770355846711,-151.0,0.0001204,2]
[404629600,1770355846720,-151.0,0.0001204,2]
[404629601,1770355846730,-151.0,0.0001204,2]
[404629602,1770355846739,-151.0,0.0001204,2]
[404629603,1770355846748,-151.0,0.0001204,2]
[404629604,1770355846758,-500.0,0.0001204,2]
[404629605,1770355846768,-500.0,0.0001204,2]
[404629606,1770355846777,-500.0,0.0001204,2]
[404629607,1770355846787,-500.0,0.0001204,2]
[404629608,1770355846796,-500.0,0.0001204,2]
[404629609,1770355846806,-500.0,0.0001204,2]
[404629610,1770355846815,-500.0,0.0001204,2]
[404629611,1770355846824,-500.0,0.0001204,2]
[404629612,1770355846834,-218.99759641,0.0001204,2]
[404629613,1770355846843,-500.0,0.0001204,2]
[404629614,1770355846853,-354.5,0.00012047,2]
[404629615,1770355846862,-3829.99,0.00012116,2]
[404629616,1770355846871,-6786.72,0.00012116,2]
[404629617,1770355846881,-299.99,0.00012116,2]
[404629618,1770355846890,-2393.29,0.00012116,2]
[404629619,1770355846899,-9999.99,0.00012116,2]
[404629620,1770355846912,-150.99,0.00012116,2]
[404629621,1770355846923,-9999.99,0.00012116,2]
[404629622,1770355846931,-150.99,0.00012116,2]
[404629623,1770355846940,-117448.91,0.00012144,2]
[404629624,1770355846950,-238.31,0.00012144,2]
[404629625,1770355846963,-166.66,0.00012213,2]
[404629626,1770355846973,-500.0,0.00012235,2]
[404629627,1770355846984,-678.42973407,0.00012242,2]
[404629628,1770355846993,-156.87,0.00012265,2]
[404629629,1770355847002,-193.0,0.00012271,2]
[404629630,1770355847011,-1158.0,0.00012308,2]
[404629631,1770355847019,-503.23813055,0.00012314,2]
[404629632,1770355847028,-354.5,0.00012321,2]
[404629633,1770355847037,-1950.0,0.00012332,2]
[404629634,1770355847045,-221.0,0.00012381,2]
[404629635,1770355847054,-946.0,0.00012403,2]
[404629636,1770355847064,-901.0,0.00012405,2]
[404629637,1770355847077,-906.0,0.00012407,2]
[404629638,1770355847087,-977.0,0.00012428,2]
[404629639,1770355847096,-407.0,0.00012433,2]
[404629640,1770355847105,-754.0,0.00012458,2]
[404629641,1770355847115,-1537.5354719,0.00012474,2]
[404629642,1770355847124,-354.5,0.00012595,2]
[404629643,1770355847133,-1724.69,0.00012622,2]
[404629644,1770355847143,-1724.69,0.00012645,2]
[404629645,1770355847152,-1724.69,0.00012667,2]
[404629646,1770355847162,-11506.6317275,0.00012674,2]
[404629647,1770355847171,-151.0,0.00012674,2]
[404629648,1770355847180,-150.0,0.00012745,2]
[404629649,1770355847190,-150.0,0.00012745,2]
[404629650,1770355847200,-150.0,0.00012745,2]
[404629651,1770355847210,-150.0,0.00012745,2]
[404629652,1770355847220,-208.09650353,0.00012745,2]
[404629653,1770355847229,-150.0,0.00012745,2]
[404629654,1770355847239,-156.08325952,0.00012745,2]
[404629655,1770355847249,-150.0,0.00012745,2]
[404629656,1770355847259,-500.0,0.00012745,2]
[404629657,1770355847268,-150.0,0.00012745,2]
[404629658,1770355847278,-180.48850923,0.00012745,2]
[404629659,1770355847287,-154.47321009,0.00012745,2]
[404629660,1770355847297,-500.0,0.00012745,2]
[404629661,1770355847306,-150.0,0.00012745,2]
[404629662,1770355847316,-500.0,0.00012745,2]
[404629663,1770355847325,-150.0,0.00012745,2]
[404629664,1770355847335,-500.0,0.00012745,2]
[404629665,1770355847344,-500.0,0.00012745,2]
[404629666,1770355847353,-150.0,0.00012745,2]
[404629667,1770355847363,-500.0,0.00012745,2]
[404629668,1770355847372,-150.5833019,0.00012745,2]
[404629669,1770355847382,-500.0,0.00012745,2]
[404629670,1770355847391,-150.0,0.00012745,2]
[404629671,1770355847401,-500.0,0.00012745,2]
[404629672,1770355847410,-168.0,0.00012775,2]
[404629673,1770355847420,-150.0,0.000128,2]
[404629674,1770355847430,-150.0,0.000128,2]
[404629675,1770355847439,-150.0,0.000128,2]
[404629676,1770355847448,-500.0,0.000128,2]
[404629677,1770355847465,-150.0,0.000128,2]
[404629678,1770355847474,-500.0,0.000128,2]
[404629679,1770355847484,-150.0,0.000128,2]
[404629680,1770355847493,-500.0,0.000128,2]
[404629681,1770355847503,-150.0,0.000128,2]
[404629682,1770355847512,-500.0,0.000128,2]
[404629683,1770355847522,-500.0,0.000128,2]
[404629684,1770355847719,-150.0,0.000128,2]
[404629685,1770355847733,-500.0,0.000128,2]
[404629686,1770355847743,-506.82577565,0.000128,2]
[404629687,1770355847752,-150.0,0.000128,2]
[404629688,1770355847761,-500.0,0.000128,2]
[404629689,1770355847771,-250.0,0.00012853,2]
[404629690,1770355847783,-150.0,0.00012855,2]
[404629691,1770355847792,-150.0,0.00012855,2]
[404629692,1770355847801,-637.62081611,0.00012855,2]
[404629693,1770355847811,-203.33737461,0.00012855,2]
[404629694,1770355847820,-235.09596036,0.00012855,2]
[404629695,1770355847829,-500.0,0.00012855,2]
[404629696,1770355847840,-150.0,0.00012855,2]
[404629697,1770355847850,-500.0,0.00012855,2]
[404629698,1770355847859,-500.0,0.00012855,2]
[404629699,1770355847868,-150.0,0.00012855,2]
[404629700,1770355847878,-500.0,0.00012855,2]
[404629701,1770355847887,-150.61707435,0.00012855,2]
[404629702,1770355847896,-500.0,0.00012855,2]
[404629703,1770355847907,-523.59681009,0.00012857,2]
[404629704,1770355847919,-302.01090711,0.00012857,2]
[404629705,1770355847928,-2154.98453251,0.0001286,2]
[404629706,1770355847938,-354.5,0.00012869,2]
[404629707,1770355847947,-1680.0,0.00012869,2]
[404629708,1770355847961,-1600.0,0.00012877,2]
[404629709,1770355847971,-150.0,0.00012909,2]
[404629710,1770355847980,-200.0,0.00012909,2]
[404629711,1770355847990,-328.58375143,0.00012909,2]
[404629712,1770355847999,-150.0,0.00012909,2]
[404629713,1770355848009,-605.03210122,0.00012909,2]